Workbook

Sheet WSSPC Cooperative Agreement
A1: PLANNED TASKS / EXPENSES | B1: Aug 2017 | C1: Sep 2017 | D1: Oct 2017 | E1: Nov 2017 | F1: Dec 2017 | G1: Jan 2018 | H1: Feb 2018 | I1: Mar 2018 | J1: Apr 2018 | K1: May 2018 | L1: Jun 2018 | M1: Jul 2018
A3: SUMMARY PLANNED COSTS
A4: Total Cooperative Agreement Amount | B4: 279833
A5: Amt Budgeted Per Month | B5: =B12 -> 16145.41 | C5: 17145.45 | D5: 16200.45 | E5: 18145.45 | F5: 23118.25 | G5: 22255.45 | H5: 49865.45 | I5: 18123 | J5: 16190.45 | K5: 49552.75 | L5: 16145.45 | M5: 16945.44
A6: Cumulative Amount Budgeted | B6: =B5 -> 16145.41 | C6: =B6+C5 -> 33290.86 | D6: 49491.31 | E6: 67636.76 | F6: 90755.01 | G6: 113010.46 | H6: 162875.91 | I6: 180998.91 | J6: 197189.36 | K6: 246742.11 | L6: 262887.56 | M6: 279833
A7: Cumulative Budget Remaining | B7: =B4-B6 -> 263687.59 | C7: =B4-C6 -> 246542.14 | D7: =B4-D6 -> 230341.69 | E7: =B4-E6 -> 212196.24 | F7: =B4-F6 -> 189077.99 | G7: =B4-G6 -> 166822.54 | H7: =B4-H6 -> 116957.09 | I7: =B4-I6 -> 98834.09 | J7: =B4-J6 -> 82643.64 | K7: =B4-K6 -> 33090.89 | L7: =B4-L6 -> 16945.44 | M7: =B4-M6 -> 0
A8: SUMMARY ACTUAL COSTS
A9: Amt Expended Per Month
A10: Amount Expended to Date
A11: Cumulative Funds Remaining
A12: PLANNED MONTHLY COSTS - BASE PLAN $225,000 | B12: 16145.41 | C12: 17145.45 | D12: 16200.45 | E12: 18145.45 | F12: 23118.25 | G12: 22255.45 | H12: 49865.45 | I12: 18123 | J12: 16190.45 | K12: 49552.75 | L12: 16145.45 | M12: 16945.44 | N12: =SUM(B12:M12) -> 279833
A14: TASK 1.0 DEVELOP SEISMIC POLICIES | B14: 1100 | C14: 1237.26 | D14: 2249.21 | E14: 2798.5 | F14: 6572.8 | G14: 2560.21 | H14: 2800 | I14: 2800 | J14: 2304.2 | K14: 9386.65 | L14: 2497 | M14: 2821 | N14: =SUM(B14:M14) -> 39126.83
A15: 1.1 Develop & Encourage Adoption of Policy Recommendations | B15: 600 | C15: 800 | D15: 749.21 | E15: 1198.5 | F15: 480 | G15: 800 | H15: 900 | I15: 900 | J15: 1004.2 | K15: 900 | L15: 1297 | M15: 1100 | O15: =SUM(B15:M15) -> 10728.91
A16: 1.2 Conduct Board Meetings | B16: 500 | C16: 437.26 | D16: 1500 | E16: 1600 | F16: 6092.8 | G16: 1760.21 | H16: 1900 | I16: 1900 | J16: 1300 | K16: 8486.65 | L16: 1200 | M16: 1721 | O16: =SUM(B16:M16) -> 28397.92
A17: TASK 2.0 PROVIDE FORUMS | B17: 1500 | C17: 1002.89 | D17: 2446.25 | E17: 2097 | F17: 1300 | G17: 3350.06 | H17: 4215 | I17: 3696.85 | J17: 3630.93 | K17: 11802.5 | L17: 2300 | M17: 1996 | N17: =SUM(B17:M17) -> 39337.48
A18: 2.1 Hold WSSPC Annual Meeting (including Awards) | B18: 1355 | C18: 762.89 | D18: 2096.25 | E18: 1747 | F18: 800 | G18: 1550.06 | H18: 1815 | I18: 1848.42 | J18: 1630.93 | K18: 6302.5 | L18: 1700 | M18: 1196 | O18: =SUM(B18:M18) -> 22804.05
A19: 2.2 Earthquake Program Managers Meeting | B19: 145 | C19: 240 | D19: 350 | E19: 350 | F19: 500 | G19: 1800 | H19: 2400 | I19: 1848.43 | J19: 2000 | K19: 5500 | L19: 600 | M19: 800 | O19: =SUM(B19:M19) -> 16533.43
A20: TASK 3.0 PROVIDE OUTREACH AND EDUCATION | B20: 5357.39 | C20: 5642.5 | D20: 4285 | E20: 4219.56 | F20: 5518 | G20: 4499.98 | H20: 4096.39 | I20: 5397.49 | J20: 4597.7 | K20: 4342.43 | L20: 4792.39 | M20: 4647.38 | N20: =SUM(B20:M20) -> 57396.21
A21: 3.1 Website | B21: 1362 | C21: 1600 | D21: 1200 | E21: 1500 | F21: 1500 | G21: 1200 | H21: 1000 | I21: 1000 | J21: 1400 | K21: 1442.43 | L21: 1400 | M21: 1800 | O21: =SUM(B21:M21) -> 16404.43
A22: 3.2 Quarterly Electronic Newsletter & Monthly Bulletins | B22: 2960.39 | C22: 3142.5 | D22: 2185 | E22: 2719.56 | F22: 3018 | G22: 2199.98 | H22: 2296.39 | I22: 3097.49 | J22: 2700 | K22: 2900 | L22: 3392.39 | M22: 2847.38 | O22: =SUM(B22:M22) -> 33459.08
A23: 3.3 Annual Report * | B23: 0 | C23: 0 | D23: 0 | E23: 0 | F23: 1000 | G23: 1100 | H23: 800 | I23: 1000 | J23: 497.7 | K23: 0 | L23: 0 | M23: 0 | O23: =SUM(B23:M23) -> 4397.7
A24: 3.4 Conduct Community Education and Outreach | B24: 1035 | C24: 900 | D24: 900 | E24: 0 | F24: 0 | G24: 0 | H24: 0 | I24: 300 | J24: 0 | K24: 0 | L24: 0 | M24: 0 | O24: =SUM(B24:M24) -> 3135
A25: TASK 4.0 MAINTAIN & ENCOURAGE PARTNERSHIPS | B25: 1038 | C25: 1478.04 | D25: 502.6 | E25: 830 | F25: 1230 | G25: 510.2 | H25: 761.06 | I25: 313.75 | J25: 342.19 | K25: 301.29 | L25: 499.9 | M25: 1081.06 | N25: =SUM(B25:M25) -> 8888.09
A26: 4.1 Maintain & Encourage Partnerships | B26: 52 | C26: 986 | D26: 300 | E26: 330 | F26: 230 | G26: 100 | H26: 381.06 | I26: 213.75 | J26: 242.19 | K26: 201.29 | L26: 399.9 | M26: 581.06 | O26: =SUM(B26:M26) -> 4017.25
A27: 4.2 Affiliate Member Program | B27: 986 | C27: 492.04 | D27: 202.6 | E27: 500 | F27: 1000 | G27: 410.2 | H27: 380 | I27: 100 | J27: 100 | K27: 100 | L27: 100 | M27: 500 | O27: =SUM(B27:M27) -> 4870.84
A28: TASK 5.0 FINANCIAL AND GRANTS MANAGEMENT | B28: 7150.02 | C28: 6159.76 | D28: 5467.39 | E28: 6200.39 | F28: 7872.45 | G28: 7985 | H28: 7468 | I28: 5914.91 | J28: 4065.43 | K28: 3886.88 | L28: 5431.16 | M28: 5150 | N28: =SUM(B28:M28) -> 72751.39
A29: 5.1 Manage Cooperative Agreement | B29: 1850 | C29: 1200 | D29: 1138 | E29: 810.39 | F29: 1372.45 | G29: 1000 | H29: 800 | I29: 800 | J29: 950 | K29: 800 | L29: 1200 | M29: 1200 | O29: =SUM(B29:M29) -> 13120.84
A30: 5.2 Manage WSSPC Finances | B30: 1700 | C30: 1959.76 | D30: 1329.39 | E30: 890 | F30: 1500 | G30: 2085 | H30: 2650 | I30: 2277.55 | J30: 1000 | K30: 1200 | L30: 1800 | M30: 1650 | O30: =SUM(B30:M30) -> 20041.7
A31: 5.3 Maintain Office and Support Personnel | B31: 3600.02 | C31: 3000 | D31: 3000 | E31: 4500 | F31: 5000 | G31: 4900 | H31: 4018 | I31: 2837.36 | J31: 2115.43 | K31: 1886.88 | L31: 2431.16 | M31: 2300 | O31: =SUM(B31:M31) -> 39588.85
A32: TASK 6.0 OUTCOMES REPORT | B32: 0 | C32: 625 | D32: 1250 | E32: 0 | F32: 625 | G32: 1250 | H32: 625 | I32: 0 | J32: 1250 | K32: 0 | L32: 625 | M32: 1250 | N32: =SUM(B32:M32) -> 7500
A33: 6.1 Prepare quarterly Outcomes Reports | B33: 0 | C33: 625 | D33: 1250 | E33: 0 | F33: 625 | G33: 1250 | H33: 625 | I33: 0 | J33: 1250 | K33: 0 | L33: 125 | M33: 0 | O33: =SUM(B33:M33) -> 5750
A34: 6.2 Prepare final Outcomes Report | B34: 0 | C34: 0 | D34: 0 | E34: 0 | F34: 0 | G34: 0 | H34: 0 | I34: 0 | J34: 0 | K34: 0 | L34: 500 | M34: 1250 | O34: =SUM(B34:M34) -> 1750
O36: =SUM(O15:O34) -> 225000
A38: TASK 7.0 SUPPORT STATES $54,833.00 | B38: =SUM(B39:B51) -> 0 | C38: 1000 | D38: 0 | E38: 2000 | F38: 0 | G38: 2100 | H38: 29900 | I38: 0 | J38: 0 | K38: 19833 | L38: 0 | M38: 0 | N38: =SUM(B38:M38) -> 54833
A39: 7.1 Support Travel to NEPM $19,833.00 | K39: 19833
A40: a. R VI New Mexico
A41: b. R VIII Montana
A42: c. R VIII Wyoming
A43: d. R IX Nevada
A44: e. R IX Hawaii
A45: f. R IX Guam
A46: g. R IX American Samoa
A47: h. R IX Northern Mariana Islands
A48: i. R X Alaska
A49: j. R X Idaho
A50: k. R X Washington
A51: 7.2 Hawaii Workshop* $35,000.00 | C51: 1000 | E51: 2000 | G51: 2100 | H51: 29900
A52: a. Secure meeting space | C52: 1000 | H52: 13000
A53: b. Support travel | E53: 2000 | H53: 16900
A54: c. Support registration | G54: 2100
A56: * Indicates Contracts are included in these tasks
A57: ACTUAL TASKS / EXPENSES | B57: Aug 2017 | C57: Sep 2017 | D57: Oct 2017 | E57: Nov 2017 | F57: Dec 2017 | G57: Jan 2018 | H57: Feb 2018 | I57: Mar 2018 | J57: Apr 2018 | K57: May 2018 | L57: Jun 2018 | M57: Jul 2018
A60: ACTUAL MONTHLY COST - BASE PLAN | B60: =B61+B64+B67+B72+B75+B84 -> 0 | C60: 0 | D60: 0 | E60: 0 | F60: 0 | G60: 0 | H60: 0 | I60: 0 | J60: 0 | K60: 0 | L60: 0 | M60: =SUM(M61+M64+M67+M72+M75) -> 0
A61: TASK 1.0 DEVELOP SEISMIC POLICIES
A62: 1.1 Develop & Encourage Adoption of Policy Recommendations
A63: 1.2 Conduct Board Meetings
A64: TASK 2.0 PROVIDE FORUMS
A65: 2.1 Hold WSSPC Annual Meeting (including Awards)
A66: 2.2 Earthquake Program Managers Meeting
A67: TASK 3.0 PROVIDE OUTREACH/PUBLIC EDUCATION
A68: 3.1 Website
A69: 3.2 Quarterly Electronic Newsletter & Monthly Bulletins
A70: 3.3 Annual Report
A71: 3.4 Conduct Community Education and Outreach
A72: TASK 4.0 MAINTAIN & ENCOURAGE PARTNERSHIPS
A73: 4.1 Maintain & Encourage Partnerships
A74: 4.2 Affiliate Member Program
A75: TASK 5.0 FINANCIAL AND GRANTS MANAGEMENT
A76: 5.1 Manage Cooperative Agreement
A77: 5.2 Manage WSSPC Finances
A78: 5.3 Maintain Office and Support Personnel
A79: TASK 6.0 OUTCOMES REPORT
A80: 6.1 Prepare quarterly Outcomes Reports
A81: 6.2 Prepare final Outcomes Report
A84: TASK 7.0 SUPPORT STATES $54,833.00
A85: 7.1 Support Travel to NEPM $19,833.00
A86: a. R VI New Mexico
A87: b. R VIII Montana
A88: c. R VIII Wyoming
A89: d. R IX Nevada
A90: e. R IX Hawaii
A91: f. R IX Guam
A92: g. R IX American Samoa
A93: h. R IX Northern Mariana Islands
A94: i. R X Alaska
A95: j. R X Idaho
A96: k. R X Washington
A97: 7.2 Hawaii Workshop $35,000.00
A98: a. Secure meeting space
A99: b. Support travel
A100: c. Support registration
A114: CONTRACTS / TOTAL | B114: Aug 2017 | C114: Sep 2017 | D114: Oct 2017 | E114: Nov 2017 | F114: Dec 2017 | G114: Jan 2018 | H114: Feb 2018 | I114: Mar 2018 | J114: Apr 2018 | K114: May 2018 | L114: Jun 2018 | M114: Jul 2018
A116: Task 1.0
A117: Task 2.0
A118: Task 3.3 Copy, assemble, print tabs, bind Annual Report $600 | I118: 600
A119: Task 4.0
A120: Task 5.0
A121: Task 7.2 Contract for Hawaii workshop meeting space $14,000 | C121: 1000 | H121: 13000
